Cogmind - Beta 17 @@@ ROGUE MODE // 2026.07.22 @ 19:53:21 Player: beans Result: Destroyed by H-66 Slayer with Gauss Rifle Performance ------------- Evolutions (5) 2500 Regions Visited (11) 2200 Robots Destroyed (101) 505 Value Destroyed (3671) 3671 Prototype IDs (26) 520 Alien Tech Used (0) 0 Bonus (1095) 1095 TOTAL SCORE: 10491 Bonus ------- High Alert Combat Kills 95 Entered Garrisons 200 Entered DSFs 500 Aligned with FarCom 300 Cogmind --------- Core Integrity 0/1000 Matter 238/300 Energy 80/100 System Corruption 0% Temperature Cool (0) Movement Core (50) Location -5/Factory Parts ------- > --- POWER (2) -------- (None) > --- PROPULSION (4) --- (None) > --- UTILITY (8) ------ Chronowheel > --- WEAPON (3) ------- (None) > --- INVENTORY (5) ---- Dispersion Rifle Disruptor Cannon Peak State ------------ > --- POWER ------------ Light Angular Momentum Engine > --- PROPULSION ------- Flexi-carbon Leg Flexi-carbon Leg Armored Leg > --- UTILITY ---------- Power Amplifier Advanced Heat Sink Advanced Heat Sink High-capacity Matter Pod Advanced Sensor Array Matter Filter Weapon Cycler Improved Light Armor Plating > --- WEAPON ----------- Coil Gun Heavy Machine Gun Heavy Machine Gun > --- INVENTORY -------- Chronowheel Gauss Rifle Flak Gun Remote Datajack [Rating: 69] Favorites ----------- Power Light Nuclear Core Engine Light Ion Engine Power Core Light Nuclear Core Propulsion Improved Titanium Leg Leg Improved Titanium Leg Flight Unit Surge Thruster Utility High-capacity Matter Pod Device Improved Heat Sink Storage High-capacity Matter Pod Protection Improved Light Armor Plating Weapon Flak Gun Energy Gun Heavy Laser Energy Cannon Matter Neutralizer Ballistic Gun Flak Gun Ballistic Cannon Antimatter Cannon Launcher Grenade Launcher Slashing Weapon Blade Saw Build | -11 -10 -10 -10 -9 -8 -7 -6 -6 -6 -6 -5 ------- Run | Yrd Mat Min Exi Min Mat Fac Fac Gar Fac DSF Fac Slots Evolved 10 | . . . . . 4 2 2 . . . 2 Power 1 | . . . . . . . . . . . 1 Propulsion 2 | . . . . . . 1 . . . . 1 Utility 6 | . . . . . 4 . 2 . . . . Weapon 1 | . . . . . . 1 . . . . . Parts Attached 78 | 6 . 2 . . 4 15 19 13 3 1 15 Power 10 | 1 . . . . . 2 2 2 . . 3 Engine 5 | 1 . . . . . . 1 . . . 3 Core 5 | . . . . . . 2 1 2 . . . Reactor . | . . . . . . . . . . . . Propulsion 17 | 2 . . . . . 2 4 3 2 1 3 Treads . | . . . . . . . . . . . . Leg 12 | 2 . . . . . 2 4 . . 1 3 Wheel . | . . . . . . . . . . . . Hover . | . . . . . . . . . . . . Flight 5 | . . . . . . . . 3 2 . . Utility 25 | . . 2 . . . 8 9 2 . . 4 Device 16 | . . 1 . . . 4 7 1 . . 3 Storage 4 | . . 1 . . . 2 . . . . 1 Processor . | . . . . . . . . . . . . Hackware . | . . . . . . . . . . . . Protection 5 | . . . . . . 2 2 1 . . . Artifact . | . . . . . . . . . . . . Weapon 26 | 3 . . . . 4 3 4 6 1 . 5 Energy Gun 4 | . . . . . 2 . . 1 . . 1 Energy Cannon 3 | . . . . . . . . 2 . . 1 Ballistic Gun 14 | 3 . . . . 1 3 4 1 1 . 1 Ballistic Cannon 2 | . . . . . . . . . . . 2 Launcher 1 | . . . . . 1 . . . . . . Special Weapon . | . . . . . . . . . . . . Impact Weapon . | . . . . . . . . . . . . Slashing Weapon 2 | . . . . . . . . 2 . . . Piercing Weapon . | . . . . . . . . . . . . Special Melee Weapon . | . . . . . . . . . . . . Unidentified Prototypes 3 | . . . . . 1 . . . 1 . 1 Parts Lost 56 | . . . . . 10 3 18 10 . . 15 Power 6 | . . . . . 1 1 1 . . . 3 Propulsion 13 | . . . . . 2 . 2 5 . . 4 Utility 19 | . . . . . 1 2 11 2 . . 3 Weapon 18 | . . . . . 6 . 4 3 . . 5 Highest Loss Streak 12 | . . . . . 6 1 9 4 . . 12 To Critical Strikes 1 | . . . . . . . . . . . 1 Average Backups 4 | 1 1 4 5 5 4 4 4 2 4 5 5 Power . | . . . 1 1 1 . . . . . . Propulsion . | . . . . . . . . . . . . Utility . | . . . 1 1 1 1 1 . . . . Weapon 1 | 1 1 2 2 2 1 1 1 . 2 2 4 Tool/Special . | . . . . . . . . . . . . Unused Backups 4 | . . . . . 1 1 . . . 2 . Power . | . . . . . . . . . . . . Propulsion . | . . . . . . . . . . . . Utility 1 | . . . . . . . . . . 1 . Weapon 2 | . . . . . 1 1 . . . . . Tool/Special 1 | . . . . . . . . . . 1 . Average Slot Usage (%) 67 | . 71 76 100 100 47 69 90 45 6 21 37 Engine 3 | . 14 14 14 14 2 . . . . . 2 Core 2 | . . . . . . 6 5 1 . . . Leg 16 | . 28 28 28 28 12 14 18 2 . 1 15 Device 15 | . . 2 14 14 8 9 30 15 . . 6 Storage 7 | . . 2 14 14 8 9 11 4 . . 2 Protection 2 | . . . . . . 5 3 3 . . . Ballistic Gun 16 | . 28 28 28 28 9 21 18 9 2 6 3 Peak Build Rating 69 | 5 5 9 11 11 11 43 69 38 14 19 49 Average Rating 31 | 3 5 6 9 11 9 33 54 27 6 15 31 On Entrance 12 | . 5 5 9 11 11 1 43 27 3 14 19 Avg Prop Armor Cover (%) 15 | . . . . . . 4 17 . . 8 16 Naked Turns 133 | . . . . . 14 10 . 22 81 . 6 Heaviest Build 42 | 7 7 12 12 12 12 34 42 22 3 3 42 Greatest Support 56 | 20 20 20 20 20 20 40 56 36 9 10 50 Greatest Overweight (x) 8 | . . . . . 1 1 . 7 . . 8 Average Overweight (x) . | . . . . . . . . 1 . . . Largest Inventory Capacity 10 | 5 5 5 5 5 5 5 5 5 5 5 10 Average Capacity 5 | 5 5 5 5 5 5 5 5 5 5 5 7 Most Carried 8 | 2 2 5 5 5 5 5 5 5 5 5 8 Average Carried 4 | 1 1 4 4 5 4 4 4 2 4 4 5 Final Capacity 5 | 5 5 5 5 5 5 5 5 5 5 5 5 Final Carried 5 | 1 2 5 5 5 5 5 5 5 5 5 2 Class Distribution -------------------- 43% | Mutant 24% | Skirmisher 19% | Scavenger-Skirmisher 4% | Tank 3% | Scavenger-Mutant Dominant Class ---------------- Mutant | -10/Materials Mutant | -10/Mines Mutant | -10/Exiles Mutant | -9/Mines Mutant | -8/Materials Skirmisher | -7/Factory Scavenger-Skirmisher | -6/Factory Scavenger-Skirmisher | -6/Garrison Mutant | -6/Factory Mutant | -6/DSF Mutant | -5/Factory Resources | -11 -10 -10 -10 -9 -8 -7 -6 -6 -6 -6 -5 ----------- Run | Yrd Mat Min Exi Min Mat Fac Fac Gar Fac DSF Fac Matter Collected 2336 | 165 . 233 . . 27 301 785 270 . . 555 Remotely . | . . . . . . . . . . . . Salvage Created 3325 | . . 167 . . 182 325 1553 304 . . 794 Parts 184 | . . 18 . . 9 18 92 16 . . 31 Haulers Intercepted 1 | . . . . . . . . . . . 1 Recyclers Shooed 7 | . . . . . . . 4 . . . 3 Parts Field Recycled . | . . . . . . . . . . . . Retrieved Matter . | . . . . . . . . . . . . Parts Self-Destructed . | . . . . . . . . . . . . Prevented . | . . . . . . . . . . . . Parts Restored . | . . . . . . . . . . . . Kills | -11 -10 -10 -10 -9 -8 -7 -6 -6 -6 -6 -5 ------- Run | Yrd Mat Min Exi Min Mat Fac Fac Gar Fac DSF Fac Combat Hostiles Destroyed 72 | . . 6 . . 10 11 22 12 . . 11 Melee 1 | . . . . . . . . 1 . . . Guns 56 | . . 6 . . 7 11 20 9 . . 3 Cannons 6 | . . . . . . . . 2 . . 4 AOE 8 | . . . . . 3 . 2 . . . 3 Classes Destroyed 13 | . . 4 . . 1 3 3 1 . . 1 Worker 17 | . . 1 . . 1 . 14 . . . 1 Builder 5 | . . . . . . . 5 . . . . Tunneler 1 | . . 1 . . . . . . . . . Hauler 1 | . . . . . . . . . . . 1 Recycler 4 | . . . . . . 1 1 . . . 2 Watcher 1 | . . . . . . . 1 . . . . Swarmer 22 | . . 5 . . 5 7 . 5 . . . Cutter 4 | . . . . . . . . 4 . . . Grunt 25 | . . 1 . . 3 . 13 2 . . 6 Brawler 2 | . . . . . . . 2 . . . . Sentry 5 | . . . . . 2 1 1 1 . . . Hunter 6 | . . . . . . 1 2 . . . 3 Programmer 8 | . . . . . . 2 4 . . . 2 Best Kill Streak 8 | . . 3 . . 4 6 8 3 . . 5 Combat Bots Only 7 | . . 3 . . 3 6 7 3 . . 5 Max Kills in Single Turn 3 | . . 2 . . 1 2 3 2 . . 2 Gunslinging 1 | . . 1 . . . 1 . . . . . Exploded 2 | . . . . . 1 . 1 . . . 2 Melee 1 | . . . . . . . . 1 . . . Uniques/NPCs Destroyed . | . . . . . . . . . . . . Combat | -11 -10 -10 -10 -9 -8 -7 -6 -6 -6 -6 -5 -------- Run | Yrd Mat Min Exi Min Mat Fac Fac Gar Fac DSF Fac Hostile Shots Fired 778 | . . 21 . . 125 94 198 134 . 3 203 Missed 253 | . . 6 . . 45 31 53 52 . 1 65 Hits 525 | . . 15 . . 80 63 145 82 . 2 138 Melee 17 | . . . . . . . 1 16 . . . Projectile 508 | . . 15 . . 80 63 144 66 . 2 138 AOE 2 | . . . . . . . . . . . 2 Critical Strikes 28 | . . . . . 4 1 7 9 . . 7 Damage Taken 8875 | . . 158 . . 1057 814 2542 1244 . 49 3011 Core 2364 | . . 14 . . 432 63 351 442 . 49 1013 Absorbed by Shields 152 | . . . . . . . 152 . . . . Core Remaining (%) 61 | 100 . . . 94 21 91 . . . . . Volleys Fired 318 | . 2 15 . . 45 26 116 40 . . 74 Largest 3 | . 2 2 . . 2 3 3 3 . . 3 Hottest 210 | . 40 40 . . 85 84 90 210 . . 193 Shots Fired 688 | . 4 30 . . 61 78 319 82 . . 114 Gun 629 | . 4 30 . . 49 78 319 76 . . 73 Cannon 47 | . . . . . . . . 6 . . 41 Launcher 12 | . . . . . 12 . . . . . . Special . | . . . . . . . . . . . . Kinetic 586 | . 4 30 . . 24 78 319 65 . . 66 Thermal 86 | . . . . . 25 . . 17 . . 44 Explosive 12 | . . . . . 12 . . . . . . Electromagnetic 4 | . . . . . . . . . . . 4 Robot Hit Streak 13 | . 1 4 . . 9 11 9 13 . . 12 Robot Miss Streak 19 | . 1 2 . . 3 19 12 9 . . 4 Penetration Max 2 | . . . . . . . 2 . . . . Secondary Targets 8 | . . 1 . . . 2 4 1 . . . Max Gunslinging Chain 2 | . . 1 . . . 2 1 1 . . . Shots Hit Robots 419 | . 1 17 . . 42 63 166 58 . . 72 Core Hits 289 | . . 11 . . 21 62 122 43 . . 30 Critical Kills 3 | . . . . . . . 1 . . . 2 Critical Parts Destroyed 2 | . . . . . . . 2 . . . . Critical Strikes 7 | . . . . . 2 . 3 . . . 2 Burn 2 | . . . . . 2 . . . . . . Meltdown 1 | . . . . . . . . . . . 1 Destroy 4 | . . . . . . . 3 . . . 1 Melee Attacks 5 | . . . . . . . . 5 . . . Impact . | . . . . . . . . . . . . Slashing 5 | . . . . . . . . 5 . . . Piercing . | . . . . . . . . . . . . Sneak Attacks . | . . . . . . . . . . . . Combat Hostiles . | . . . . . . . . . . . . Follow-up Attacks . | . . . . . . . . . . . . Damage Inflicted 10337 | . 10 258 . . 946 804 4747 991 . . 2581 Guns 7279 | . 10 244 . . 463 804 3984 824 . . 950 Cannons 1108 | . . . . . . . . 149 . . 959 Explosions 1905 | . . . . . 482 . 751 . . . 672 Melee 18 | . . . . . . . . 18 . . . Ramming 27 | . . 14 . . 1 . 12 . . . . Kinetic 6740 | . 10 244 . . 175 804 3984 730 . . 793 Thermal 2161 | . . . . . 288 . . 243 . . 1630 Explosive 1334 | . . . . . 482 . 751 . . . 101 Electromagnetic 57 | . . . . . . . . . . . 57 Impact . | . . . . . . . . . . . . Slashing 18 | . . . . . . . . 18 . . . Piercing . | . . . . . . . . . . . . Highest Corruption 2 | . . . . . . 2 2 2 2 2 . Average Corruption 1 | . . . . . . 1 1 2 2 2 . Corruption Purged . | . . . . . . . . . . . . Corruption Blocked . | . . . . . . . . . . . . Effects 28 | . . . . . . 2 17 6 3 . . Message Errors 9 | . . . . . . 1 5 2 1 . . Matter Fused 7 | . . . . . . . 5 1 1 . . Heat Flow Errors 2 | . . . . . . . 1 . 1 . . Energy Discharges 1 | . . . . . . 1 . . . . . Parts Rejected 2 | . . . . . . . 1 1 . . . Parts Fused 1 | . . . . . . . . 1 . . . Data Loss (minor) 3 | . . . . . . . 3 . . . . Data Loss (major) 1 | . . . . . . . 1 . . . . Misfires 2 | . . . . . . . 1 1 . . . Overload Shots . | . . . . . . . . . . . . Overflow Damage 236 | . . . . . . . 66 . . . 170 Projectiles 54 | . . . . . . . . . . . 54 Explosions 182 | . . . . . . . 66 . . . 116 Melee . | . . . . . . . . . . . . Knockbacks 1 | . . . . . . . . . . . 1 Impact . | . . . . . . . . . . . . Kinetic 1 | . . . . . . . . . . . 1 Secondary . | . . . . . . . . . . . . Self-Inflicted Damage 636 | . . . . . . . 220 . . . 416 Shots 10 | . . . . . . . 5 . . . 5 Rammed 2 | . . . . . 1 . . 1 . . . Targets Rammed 9 | . . 3 . . 1 . 4 1 . . . Kicked 7 | . . 3 . . . . 4 . . . . Crushed . | . . . . . . . . . . . . Highest Temperature 304 | . . 2 . . 27 170 250 304 192 . 122 Average Temperature 63 | . . 2 . . 9 88 39 116 99 . 38 Received Heat Transfer 1365 | . . 45 . . 378 48 477 177 . . 240 Siege Activations . | . . . . . . . . . . . . Martial Activations . | . . . . . . . . . . . . Shielding Activations . | . . . . . . . . . . . . Robots Disrupted . | . . . . . . . . . . . . Combat Hostiles . | . . . . . . . . . . . . Robots Corrupted . | . . . . . . . . . . . . Combat Hostiles . | . . . . . . . . . . . . Parts Fried . | . . . . . . . . . . . . Impact Corruptions . | . . . . . . . . . . . . Robots Melted 1 | . . . . . . . . . . . 1 Combat Hostiles 1 | . . . . . . . . . . . 1 Parts Melted 4 | . . . . . 3 . . . . . 1 Heat Transferred 2757 | . . . . . 777 . . 333 . . 1647 Parts Sabotaged . | . . . . . . . . . . . . Parts Stolen . | . . . . . . . . . . . . Parts Stripped . | . . . . . . . . . . . . Power Chain Reactions . | . . . . . . . . . . . . Alert | -11 -10 -10 -10 -9 -8 -7 -6 -6 -6 -6 -5 ------- Run | Yrd Mat Min Exi Min Mat Fac Fac Gar Fac DSF Fac Maximum Alert Level 2 | . . . . . . . 2 2 1 1 1 Low Security (%) 82 | 100 100 100 . 100 100 100 93 . . . 97 Level 1 6 | . . . . . . . 4 . 100 100 2 Level 2 11 | . . . . . . . 1 100 . . . Level 3 . | . . . . . . . . . . . . Level 4 . | . . . . . . . . . . . . Level 5 . | . . . . . . . . . . . . High Security . | . . . . . . . . . . . . Max Security . | . . . . . . . . . . . . Peak Influence 689 | . . 70 . . 135 134 592 689 350 218 285 Initial 408 | . . . . . . 29 12 408 350 203 114 Average 124 | . . 16 . . 62 56 78 549 321 205 71 Influence Increases 3032 | . . 190 . . 295 285 1263 361 . 15 623 Destroy 0b10 Robot/C 1440 | . . 120 . . 200 220 440 240 . . 220 Destroy 0b10 Robot/NC 145 | . . 10 . . 5 5 105 . . . 20 Destroy Leader 314 | . . 30 . . 50 60 92 30 . . 52 Successful Hack 14 | . . . . . . . 14 . . . . Disable Machine 570 | . . . . . . . 420 . . . 150 Anti-Garrison Action 50 | . . . . . . . . 50 . . . Destroy Structure 244 | . . . . . 25 . 42 11 . . 166 Partial Spotted 30 | . . . . . . . 15 . . . 15 Lose Combat Pursuer 225 | . . 30 . . 15 . 135 30 . 15 . Influence Decreases 2793 | . . 144 46 . 230 324 706 275 379 87 602 Entered New Map 781 | . . . 46 . . 36 14 175 319 87 104 Time Decay 1452 | . . 144 . . 130 258 512 . 60 . 348 Lost Part 560 | . . . . . 100 30 180 100 . . 150 Squads Dispatched 17 | . 1 . . . . 1 10 . 1 . 4 Investigation 1 | . . . . . . . . . . . 1 Extermination 6 | . . . . . . 1 3 . 1 . 1 Reinforcement 7 | . 1 . . . . . 5 . . . 1 Assault . | . . . . . . . . . . . . Garrison 3 | . . . . . . . 2 . . . 1 Intercept . | . . . . . . . . . . . . Searches Triggered . | . . . . . . . . . . . . Construction Impeded 1 | . . . . . . . 1 . . . . Haulers Reinforced 3 | . . . . . . . 2 . . . 1 Active Scanning Responses . | . . . . . . . . . . . . Cargo Convoy Interrupts . | . . . . . . . . . . . . Stealth | -11 -10 -10 -10 -9 -8 -7 -6 -6 -6 -6 -5 --------- Run | Yrd Mat Min Exi Min Mat Fac Fac Gar Fac DSF Fac Distress Signals 6 | . . . . . 1 . 3 . . . 2 Communications Jammed . | . . . . . . . . . . . . Distress Signals . | . . . . . . . . . . . . Times Spotted 121 | . 1 8 . . 17 12 42 19 . 2 20 Peak Tracking Total 7 | . 1 2 . . 6 6 7 6 . 2 5 Tactical Retreats 14 | . . 2 . . 1 . 8 2 . 1 . Traps | -11 -10 -10 -10 -9 -8 -7 -6 -6 -6 -6 -5 ------- Run | Yrd Mat Min Exi Min Mat Fac Fac Gar Fac DSF Fac Traps Triggered 4 | . . . . . . 1 . 2 . . 1 Indirectly . | . . . . . . . . . . . . Trap Hack Attempts . | . . . . . . . . . . . . Triggered . | . . . . . . . . . . . . Disarmed . | . . . . . . . . . . . . Reprogrammed . | . . . . . . . . . . . . Reused . | . . . . . . . . . . . . Traps Extracted . | . . . . . . . . . . . . Installed . | . . . . . . . . . . . . Triggered . | . . . . . . . . . . . . Machines | -11 -10 -10 -10 -9 -8 -7 -6 -6 -6 -6 -5 ---------- Run | Yrd Mat Min Exi Min Mat Fac Fac Gar Fac DSF Fac Machines Disabled 39 | . . . . . . . 28 1 . . 10 Max in Single Turn 9 | . . . . . . . 9 1 . . 5 Garrison Relay 1 | . . . . . . . . 1 . . . Machines Repaired . | . . . . . . . . . . . . Machines Dismantled . | . . . . . . . . . . . . Machines Sabotaged . | . . . . . . . . . . . . Overloaded Fab Kills . | . . . . . . . . . . . . Hacking | -11 -10 -10 -10 -9 -8 -7 -6 -6 -6 -6 -5 --------- Run | Yrd Mat Min Exi Min Mat Fac Fac Gar Fac DSF Fac Machines Accessed 4 | . . . 1 . . . 2 . 1 . . Terminals 1 | . . . . . . . . . 1 . . Fabricators 1 | . . . . . . . 1 . . . . Repair Stations . | . . . . . . . . . . . . Recycling Units . | . . . . . . . . . . . . Scanalyzers . | . . . . . . . . . . . . Garrison Access 1 | . . . . . . . 1 . . . . Total Hacks 6 | . . . 1 . . . 3 . 2 . . Successful 4 | . . . 1 . . . 2 . 1 . . Failed 2 | . . . . . . . 1 . 1 . . Catastrophic . | . . . . . . . . . . . . Database Lockouts . | . . . . . . . . . . . . Manual 1 | . . . 1 . . . . . . . . Terminals 2 | . . . . . . . . . 2 . . Fabricators 1 | . . . . . . . 1 . . . . Repair Stations . | . . . . . . . . . . . . Recycling Units . | . . . . . . . . . . . . Scanalyzers . | . . . . . . . . . . . . Garrison Access 2 | . . . . . . . 2 . . . . Terminal Hacks 2 | . . . 1 . . . . . 1 . . Open DSF 1 | . . . . . . . . . 1 . . Proto ID Catalog 1 | . . . 1 . . . . . . . . Fabricator Hacks 1 | . . . . . . . 1 . . . . Network Status 1 | . . . . . . . 1 . . . . Repair Station Hacks . | . . . . . . . . . . . . Recycling Unit Hacks . | . . . . . . . . . . . . Scanalyzer . | . . . . . . . . . . . . Garrison Access Hacks 1 | . . . . . . . 1 . . . . Unlock Access 1 | . . . . . . . 1 . . . . Unauthorized Hacks . | . . . . . . . . . . . . Terminals . | . . . . . . . . . . . . Fabricators . | . . . . . . . . . . . . Repair Stations . | . . . . . . . . . . . . Recycling Units . | . . . . . . . . . . . . Scanalyzers . | . . . . . . . . . . . . Garrison Access . | . . . . . . . . . . . . Data Cores Recovered . | . . . . . . . . . . . . Used . | . . . . . . . . . . . . Hacking Detections 3 | . . . . . . . 2 . 1 . . Full Trace Events . | . . . . . . . . . . . . Feedback Events . | . . . . . . . . . . . . Feedback Blocked . | . . . . . . . . . . . . Robot Schematics Acquired . | . . . . . . . . . . . . Robots Built . | . . . . . . . . . . . . Authchips . | . . . . . . . . . . . . Time . | . . . . . . . . . . . . Total Robot Build Rating . | . . . . . . . . . . . . Part Schematics Acquired . | . . . . . . . . . . . . Parts Built . | . . . . . . . . . . . . Authchips . | . . . . . . . . . . . . Time . | . . . . . . . . . . . . Total Part Build Rating . | . . . . . . . . . . . . Part Studies Acquired . | . . . . . . . . . . . . Parts Repaired . | . . . . . . . . . . . . Time . | . . . . . . . . . . . . Parts Recycled . | . . . . . . . . . . . . Recycled Matter . | . . . . . . . . . . . . Retrieved Matter . | . . . . . . . . . . . . Retrieved Components . | . . . . . . . . . . . . Parts Scanalyzed . | . . . . . . . . . . . . Part Schematics Acquired . | . . . . . . . . . . . . Parts Damaged . | . . . . . . . . . . . . Bothacking | -11 -10 -10 -10 -9 -8 -7 -6 -6 -6 -6 -5 ------------ Run | Yrd Mat Min Exi Min Mat Fac Fac Gar Fac DSF Fac Used RIF Installer . | . . . . . . . . . . . . Robots Hacked . | . . . . . . . . . . . . Non-combat . | . . . . . . . . . . . . Combat . | . . . . . . . . . . . . Robot Hacks Applied . | . . . . . . . . . . . . Relay Couplers Released 5 | . . . . . . . . 5 . . . Machine Destruction 5 | . . . . . . . . 5 . . . Fabnet Peak Effective % . | . . . . . . . . . . . . Robots Rewired . | . . . . . . . . . . . . Allies Hacked . | . . . . . . . . . . . . Hacks Repelled . | . . . . . . . . . . . . Allies | -11 -10 -10 -10 -9 -8 -7 -6 -6 -6 -6 -5 -------- Run | Yrd Mat Min Exi Min Mat Fac Fac Gar Fac DSF Fac Total Allies . | . . . . . . . . . . . . Largest Group . | . . . . . . . . . . . . Highest-Rated Group . | . . . . . . . . . . . . Highest-Rated Ally . | . . . . . . . . . . . . Initial Warlord ECA Mod 1 | . . . . . . . . . 1 1 . Total Orders . | . . . . . . . . . . . . Ally Attacks . | . . . . . . . . . . . . Total Damage . | . . . . . . . . . . . . Kills . | . . . . . . . . . . . . Allies Corrupted . | . . . . . . . . . . . . Allies Melted . | . . . . . . . . . . . . Intel | -11 -10 -10 -10 -9 -8 -7 -6 -6 -6 -6 -5 ------- Run | Yrd Mat Min Exi Min Mat Fac Fac Gar Fac DSF Fac Active Infowar (turns) 458 | . . . . . . . 458 . . . . Sensors 30 | . . . . . . . 30 . . . . IFF 428 | . . . . . . . 428 . . . . Robot Analysis Total . | . . . . . . . . . . . . Derelict Logs Recovered 1 | . . 1 . . . . . . . . . Drone Launches . | . . . . . . . . . . . . Drone Recoveries . | . . . . . . . . . . . . Exploration | -11 -10 -10 -10 -9 -8 -7 -6 -6 -6 -6 -5 ------------- Run | Yrd Mat Min Exi Min Mat Fac Fac Gar Fac DSF Fac Turns Passed 5386 | 46 57 537 267 72 348 748 1662 560 132 86 871 Spaces Moved 3414 | 37 42 397 222 61 198 448 760 230 291 87 641 Core 621 | 11 . . . . 29 16 . 99 170 . 296 Treads . | . . . . . . . . . . . . Legs 2463 | 26 42 397 222 61 169 432 760 38 . . 316 Wheels . | . . . . . . . . . . . . Hover . | . . . . . . . . . . . . Flight 330 | . . . . . . . . 93 121 87 29 Fastest Speed 20 | 50 120 120 120 120 50 50 120 20 34 30 44 Average Speed 107 | 99 120 120 120 120 110 128 125 133 43 37 84 Slowest Speed 450 | 120 120 120 120 120 120 200 130 400 50 44 450 Overloaded Moves 48 | . . . . . . . . 40 . 8 . Propulsion Burnouts . | . . . . . . . . . . . . Robots Hopped 3 | . . . . . . . . 2 . 1 . Potential Cave-ins . | . . . . . . . . . . . . Cave-ins Triggered . | . . . . . . . . . . . . Exploration Rate (%) 29 | 3 18 85 61 16 22 10 16 26 9 80 12 Regions Visited 11 Branch Regions 3 Pre-discovered Areas 1 | . . 1 . . . . . . . . . Known Exits Taken 2 | . . . . . . . 1 . 1 . . Unknown Exits Taken 7 | 1 1 1 1 1 1 1 . . . . . Scrap Searched 2 | . . 2 . . . . . . . . . Spaces Dug . | . . . . . . . . . . . . Terrain Destroyed 170 | . . . . . 35 . 42 1 . . 92 Melee . | . . . . . . . . . . . . Projectile 10 | . . . . . . . 3 1 . . 6 AOE 160 | . . . . . 35 . 39 . . . 86 Terrain Rammed . | . . . . . . . . . . . . Walls Destroyed . | . . . . . . . . . . . . Machines Disabled . | . . . . . . . . . . . . Actions | -11 -10 -10 -10 -9 -8 -7 -6 -6 -6 -6 -5 --------- Run | Yrd Mat Min Exi Min Mat Fac Fac Gar Fac DSF Fac Total 4600 | 44 44 426 223 60 267 558 1266 407 295 139 871 Wait 675 | . . 6 . . 15 61 345 84 . 49 115 Move 3398 | 36 41 396 221 60 197 447 759 226 290 84 641 Hop 2 | . . . . . . . . 1 . 1 . Pick Up 42 | 2 1 4 1 . 2 7 7 7 2 2 7 Fast Attach 48 | 4 . 1 . . 2 10 15 9 1 1 5 Attach 41 | 1 . 1 . . 2 5 5 9 2 . 16 Detach 14 | . . . . . 1 . 1 4 . . 8 Swap 9 | 1 . . . . 1 . 4 1 . . 2 Drop 24 | . . . 1 . 1 2 10 5 . 2 3 Fire 318 | . 2 15 . . 45 26 116 40 . . 74 Melee 5 | . . . . . . . . 5 . . . Ram 2 | . . . . . 1 . . 1 . . . Kick 7 | . . 3 . . . . 4 . . . . Crush . | . . . . . . . . . . . . Escape Stasis 15 | . . . . . . . . 15 . . . Rewire . | . . . . . . . . . . . . Trap . | . . . . . . . . . . . . Miscellaneous . | . . . . . . . . . . . . Route ------- -11/Scrapyard -10/Materials -10/Mines (discovered 3 exits: [*Mat x2] / *Exi) -10/Exiles -9/Mines -8/Materials -7/Factory -6/Factory (discovered 2 exits: [*Fac] / Gar) -6/Garrison -6/Factory -6/DSF -5/Factory History --------- Turn | Location | Event 9 | -11/Scrapyard | Discovered new exit (range 15) 47 | -11/Scrapyard | Entered Materials 85 | -10/Materials | Discovered new exit (range 15) 104 | -10/Materials | Entered Mines 187 | -10/Mines | Discovered new exit (range 9) 213 | -10/Mines | Discovered new exit (range 7) 314 | -10/Mines | Build established: Mutant 353 | -10/Mines | Learned location of Storage (-9) 636 | -10/Mines | Deemed a non-threat by the Exiles lab entrance 636 | -10/Mines | Discovered new exit (range 5) 641 | -10/Mines | Entered Exiles 671 | -10/Exiles | Met 8R-AWN 693 | -10/Exiles | Met EX-HEX 729 | -10/Exiles | Met EX-BIN 743 | -10/Exiles | Aligned with FarCom system 745 | -10/Exiles | Given EX-Vault access code 773 | -10/Exiles | Opened EX-Vault 784 | -10/Exiles | Found Chronowheel 807 | -10/Exiles | Warned to stay clear of 0b10 Research branches 851 | -10/Exiles | Met EX-DEC 893 | -10/Exiles | Discovered new exit (range 14) 908 | -10/Exiles | Left Exiles lab with Chronowheel 908 | -10/Exiles | Entered Mines 962 | -9/Mines | Discovered new exit (range 8) 980 | -9/Mines | Entered Materials 980 | -8/Materials | Evolved 4 slots: Utility x4 1171 | -8/Materials | Lost 6 parts (1p1n4w) 1313 | -8/Materials | Core integrity fell below 50% 1322 | -8/Materials | Discovered new exit (range 14) 1328 | -8/Materials | Entered Factory 1328 | -7/Factory | Evolved 2 slots: Propulsion x1, Weapon x1 1343 | -7/Factory | Lost 4 parts (1n1u2w) 1599 | -7/Factory | Build established: Skirmisher 1962 | -7/Factory | Discovered new exit (range 13) 2076 | -7/Factory | Entered another Factory area 2076 | -6/Factory | Evolved 2 slots: Utility x2 2485 | -6/Factory | Discovered new exit (range 3) 2603 | -6/Factory | Lost 4 parts (1n3u) 2906 | -6/Factory | Build established: Scavenger-Skirmisher 3354 | -6/Factory | Build established: Skirmisher 3633 | -6/Factory | Garrison activated, responded to threat 3678 | -6/Factory | Destroyed 7 combat bots 3738 | -6/Factory | Identified exit to Garrison 3738 | -6/Factory | Entered Garrison 3767 | -6/Garrison | Lost 9 parts (1p1n4u3w) 3918 | -6/Garrison | Lost 3 parts (2n1u) 3922 | -6/Garrison | Triggered checkpoint 3964 | -6/Garrison | Garrison Relay disabled 4156 | -6/Garrison | Core integrity fell below 50% 4248 | -6/Garrison | Triggered checkpoint 4248 | -6/Garrison | Triggered checkpoint 4257 | -6/Garrison | Spotted B-75 Beast 4280 | -6/Garrison | Core integrity fell below 20% 4294 | -6/Garrison | Discovered new exit (range 9) 4298 | -6/Garrison | Entered Factory 4307 | -6/Factory | Lost 4 parts (3n1u) 4430 | -6/Factory | Identified exit to DSF 4430 | -6/Factory | Entered DSF 4497 | -6/DSF | Additional patrols routed to DSF 4510 | -6/DSF | Discovered new exit (range 15) 4516 | -6/DSF | Entered Factory 4516 | -5/Factory | Evolved 2 slots: Power x1, Propulsion x1 4572 | -5/Factory | Build established: Mutant 5370 | -5/Factory | Garrison activated, responded to threat 5371 | -5/Factory | Core integrity fell below 50% 5385 | -5/Factory | Core integrity fell below 20% 5387 | -5/Factory | Activated Chronowheel 5387 | -5/Factory | Destroyed by H-66 Slayer with Gauss Rifle Last Messages --------------- H-66 Slayer knocked back. Slug penetrates Wall. Penetrated by Slug. Antimatter Cannon destroyed. Penetrated by Slug. K-01 Serf collects debris. Penetrated by Slug. Enh. Autogun destroyed. Hvy. Machine Gun destroyed. Penetrated by Slug. Med. Storage Unit destroyed. Penetrated by Slug. K-01 Serf collects debris. U-05 Engineer builds a Wall. Penetrated by Slug. K-01 Serf collects debris. Penetrated by Slug. Spacetime feels off. Penetrated by Slug. Slug penetrates Wall. Map ----- +----------------------------------------------------+ | ?????????????# """ """ ## ## #?# """"""" # | | ?????????????? ## ## #?# """"""" # | | ??????????????? ## ## ### """"""" # | | ?????????????? ## ## / # | | ??????????????#############+## ###+####+###### | | ????????????????????# # #?# | | ????????????????????# # ### | | ????????????????????# # | | ????????????????????# # | | ????????????????????# [ + | | ????????????????????# # %#### ###### | | ????????????????????# # #??# #????? | | ????????????????????# # #?##+###### | | ????????????????????# ! # #?# | | ????????????????????########## #?# ! | | ?????????????????????????????######### #?# | | ????????############????????????????## #?# | | ????????# ! ################### #?# """ " | | ????????# + #?# """ " | | ????????# """ """ #####################?# """ " | | ????????# """ """ # " !##???????# | | ????????# """ """ ]# ;#???????# """ " | | ????????# # ;#???????# """?? | | ????????# """ """ ; ##??????# ""??? | | ????????# """ """ ; k #??????# ???? | | ????????# """ """ @ ;#####??#####???? | | ????????# ???? | | ????????# """ """ """" ""?????? | | ????????# """ """ ; % """?????????? | | ????????# """ """ ;k """?????????? | | ????????# # ; """?????????? | | ??????# # hh; ????????? | | ############+#####;;;; ;;;;#####+#######+### | | t | | m | | =! | | [=% hh | | !%%%* | | ############!"#;;;#+################### #### | | ????##" " = =" #????????????????????? | | ????# "%" | #????????????????????? | | ????# " %! ##???????????????????? | | ????# !*=% "#???????????????????? | | ????# * "#???????????????????? | | ????# =%| "#???????????????????? | | ????# " * "#???????????????????? | | ????# " "#???????????????????? | | ????# " ##???????????????????? | | ????# " """""""""#????????????????????? | | ????### ## # ###????????????????????? | +----------------------------------------------------+ Best States ------------- Heat Dissipation 75 Energy Generation 25 Energy Capacity 360 Matter Stores 500 Matter Capacity 500 Sight Range 16 Robot Scan Range 16 Terrain Scan Density 10 Power Amplification 20 Armor Coverage 225 Weapon Cycling 15 Evasion (%) 65 Matter Filtering 30 Kinecelleration 30 Item Schematics ----------------- None Robot Schematics ------------------ None Fabricated ------------ Nothing Repaired ---------- Nothing Studied --------- None Alien Tech Used ----------------- None Achievements -------------- None Challenges ------------ None Game ------ Seed ArchitectMeleeDetonator Manual? 0 Play Time 00:36:17 Cumulative 374.3 hours Start 2026.07.22 @ 19:14:11 End 2026.07.22 @ 19:53:21 Sessions 1 Manual Loads 0 Difficulty Rogue Special Mode None Game No. 925 Rogue 923 Adventurer 2 Explorer 0 Win Type - Total 1 Types 1/0/0/0/0/0/0/0/0/0 Lore% 55 Gallery% 67 Achievement% 53 Wizard Run 0 Options --------- Layout 2 ASCII 0 Keyboard 0 Movement Mouse Keybinds 0 Fullscreen 1 Font 24/Smallcaps Map View 50x44 Zoom Use 0% Tactical HUD 0 Map Filters NONE Filters NONE Steam 1 RUN: a40f83f2-d229-4f69-b3a0-f7d8cdc19204